bitfinex/quotes_BTCUSD_20240629
["timestamp","ask_amount","ask_price","bid_price","bid_amount"]
[1719627500333,0.74426294,60968.0,60967.0,0.20735504]
[1719627500595,0.72065394,60968.0,60967.0,0.20735504]
[1719627500791,0.53524994,60968.0,60967.0,0.20735504]
[1719627501018,0.518202,60968.0,60967.0,0.20735504]
[1719627501246,0.518202,60968.0,60967.0,0.20035504]
[1719627501693,0.518202,60968.0,60967.0,0.19589182]
[1719627502152,0.518202,60968.0,60967.0,0.18989182]
[1719627502387,0.518202,60968.0,60967.0,0.19589182]
[1719627502889,0.518202,60968.0,60967.0,0.20135504]
[1719627503371,0.518202,60968.0,60967.0,0.20735504]
[1719627504019,0.518202,60968.0,60967.0,0.19589182]
[1719627504020,0.445176,60968.0,60967.0,0.19589182]
[1719627504274,0.1,60968.0,60967.0,0.3582308]
[1719627504503,0.00084,60977.0,60971.0,0.01146322]
[1719627504504,0.0934,60972.0,60971.0,0.01146322]
[1719627504747,0.670003,60972.0,60971.0,0.3603022]
[1719627505192,0.364421,60972.0,60971.0,0.3603022]
[1719627505654,0.04463871,60993.0,60985.0,0.00146322]
[1719627505887,0.0934,60986.0,60985.0,0.00146322]
[1719627506101,2.119249,60986.0,60985.0,0.00146322]
[1719627506590,2.119249,60986.0,60981.0,0.1054]
[1719627506808,2.025849,60985.0,60982.0,0.00146322]
[1719627507020,0.07795119,60993.0,60979.0,0.1865]
[1719627507021,2.025849,60990.0,60987.0,0.00146322]
[1719627507300,0.0934,60988.0,60981.0,0.00146322]
[1719627507491,2.025849,60987.0,60986.0,0.00146322]
[1719627507720,0.1934,60987.0,60986.0,0.00146322]
[1719627508395,0.1934,60987.0,60983.0,0.00146322]
[1719627508628,2.125849,60986.0,60985.0,0.001]
[1719627508849,2.219249,60986.0,60985.0,0.001]
[1719627509075,0.01,60983.0,60976.0,0.4675]
[1719627509314,0.0934,60977.0,60976.0,0.4675]
[1719627509530,2.119249,60977.0,60975.0,0.00146322]
[1719627509788,2.119249,60977.0,60972.0,0.0811]
[1719627509789,0.1,60981.0,60976.0,0.00146322]
[1719627509976,0.0934,60977.0,60976.0,0.00146322]
[1719627510203,0.1034,60977.0,60971.0,0.00146322]
[1719627510457,0.0934,60973.0,60971.0,0.00146322]
[1719627510702,2.025849,60972.0,60971.0,0.00146322]
[1719627510936,2.125849,60972.0,60971.0,0.00146322]
[1719627511426,2.125849,60972.0,60966.0,0.0811]
[1719627511667,0.1,60972.0,60971.0,0.002]
[1719627511912,2.025849,60971.0,60967.0,0.16233898]
[1719627512153,0.0934,60968.0,60967.0,0.16233898]
[1719627512386,2.119249,60968.0,60967.0,0.16233898]
[1719627512617,1.097903,60968.0,60967.0,0.2692022]
[1719627513950,1.11495132,60968.0,60967.0,0.2692022]
[1719627514610,1.11495132,60968.0,60967.0,0.2802022]
[1719627514885,1.11495132,60968.0,60967.0,0.2742022]
[1719627515108,1.11495132,60968.0,60967.0,0.2752022]
[1719627515431,1.11495132,60968.0,60967.0,0.2811262]
[1719627515655,0.11044832,60968.0,60967.0,0.2811262]
[1719627515872,2.13629732,60968.0,60967.0,0.117324]
[1719627516122,2.13629716,60968.0,60967.0,0.112324]
[1719627516308,2.13629716,60968.0,60967.0,0.117324]
[1719627516526,2.13629716,60968.0,60967.0,0.11878722]
[1719627516951,2.13629716,60968.0,60967.0,0.11278722]
[1719627517191,2.13629716,60968.0,60967.0,0.005924]
[1719627517192,2.21090342,60968.0,60967.0,0.005924]
[1719627517405,2.21090342,60968.0,60967.0,0.011924]
[1719627517406,2.31090342,60968.0,60967.0,0.011924]
[1719627518114,2.31090342,60968.0,60967.0,0.006924]
[1719627518324,2.23625149,60968.0,60967.0,0.000924]
[1719627518538,2.23625149,60968.0,60967.0,0.001924]
[1719627518771,2.21920333,60968.0,60967.0,0.001924]
[1719627518993,2.23624906,60968.0,60967.0,0.001924]
[1719627519656,2.23624906,60968.0,60967.0,0.002224]
[1719627522056,2.23625007,60968.0,60967.0,0.002224]
[1719627525196,2.23624875,60968.0,60967.0,0.002224]
[1719627526134,2.23624875,60968.0,60967.0,0.00368722]
[1719627526384,2.23629442,60968.0,60967.0,0.00368722]
[1719627528150,2.23629442,60968.0,60967.0,0.002224]
[1719627529091,2.23629465,60968.0,60967.0,0.002224]
[1719627531308,2.24629465,60968.0,60967.0,0.002224]
[1719627531522,2.24629407,60968.0,60967.0,0.002224]
[1719627531741,2.2462941,60968.0,60967.0,0.002224]
[1719627531958,2.26333905,60968.0,60967.0,0.002224]
[1719627532842,2.26333905,60968.0,60967.0,0.00214804]
[1719627534381,2.26333905,60968.0,60967.0,0.09164804]
[1719627534833,2.52295502,60968.0,60960.0,0.0895]
[1719627535077,0.0934,60961.0,60960.0,0.0895]
[1719627535325,2.129249,60961.0,60960.0,0.0895]
[1719627535567,2.62065474,60961.0,60951.0,0.0895]
[1719627535783,0.0934,60954.0,60951.0,0.0895]
[1719627536000,2.025849,60953.0,60952.0,0.1144]
[1719627536221,2.14289395,60953.0,60952.0,0.1144]
[1719627536435,0.11704495,60953.0,60952.0,0.1144]
[1719627536688,2.14289395,60953.0,60952.0,0.1144]
[1719627537566,2.14289395,60953.0,60952.0,0.1154]
[1719627537567,2.14389395,60953.0,60952.0,0.1154]
[1719627538269,2.126849,60953.0,60952.0,0.1164]
[1719627538494,2.1438948,60953.0,60952.0,0.1164]
[1719627538720,2.1438962,60953.0,60952.0,0.1164]
[1719627539388,2.1438962,60953.0,60952.0,0.11786322]
[1719627539613,2.1438962,60953.0,60952.0,0.20736322]
[1719627539870,2.1428962,60953.0,60952.0,0.20636322]
[1719627540107,2.1438962,60953.0,60952.0,0.20536322]
[1719627541060,2.14289834,60953.0,60952.0,0.20536322]
[1719627541552,2.14389834,60953.0,60952.0,0.2039]
[1719627541826,2.14389834,60953.0,60952.0,0.20536322]
[1719627542043,2.14389834,60953.0,60952.0,0.2039]
[1719627542741,2.14389834,60953.0,60952.0,0.20536322]
[1719627542973,2.15846334,60953.0,60952.0,0.20536322]
[1719627543406,2.16046334,60953.0,60952.0,0.20536322]
[1719627543842,2.1604639,60953.0,60952.0,0.20536322]
[1719627544122,2.1584639,60953.0,60952.0,0.20536322]
[1719627544643,2.1604639,60953.0,60952.0,0.20536322]
[1719627545358,2.1584639,60953.0,60952.0,0.20536322]
[1719627546922,2.141414,60953.0,60952.0,0.20536322]
[1719627547108,2.16046089,60953.0,60952.0,0.20536322]
[1719627547451,2.16046089,60953.0,60952.0,0.20628722]
[1719627548971,1.65688089,60953.0,60952.0,0.20624072]
[1719627550067,1.65688081,60953.0,60952.0,0.20624072]
[1719627550300,1.639834,60953.0,60952.0,0.20624072]
[1719627550518,1.65488043,60953.0,60952.0,0.20624072]
[1719627550755,1.65688076,60953.0,60952.0,0.20624072]
[1719627551208,1.65688076,60953.0,60952.0,0.19281989]
[1719627552148,1.56348076,60953.0,60952.0,0.19135667]
[1719627552382,1.65688076,60953.0,60952.0,0.19135667]
[1719627552587,1.65688076,60953.0,60952.0,0.19281989]
[1719627552810,1.65680953,60953.0,60952.0,0.19281989]
[1719627553260,1.6568098,60953.0,60952.0,0.19281989]
[1719627553485,1.65680978,60953.0,60952.0,0.19281989]
[1719627553709,2.23622478,60953.0,60952.0,0.19281989]
[1719627554864,2.23822478,60953.0,60952.0,0.19281989]
[1719627555097,2.23622478,60953.0,60952.0,0.19281989]
[1719627555315,2.23822478,60953.0,60952.0,0.19135667]
[1719627555552,2.23822478,60953.0,60952.0,0.19281989]
[1719627556519,2.23823631,60953.0,60952.0,0.19281989]
[1719627556956,2.00928454,60953.0,60952.0,0.19281989]
[1719627557409,2.10268454,60953.0,60952.0,0.19281989]
[1719627560129,2.085626,60953.0,60952.0,0.19135667]
[1719627560343,2.10268317,60953.0,60952.0,0.19281989]
[1719627563030,2.10268493,60953.0,60952.0,0.19281989]
[1719627563896,2.10268493,60953.0,60952.0,0.19291989]
[1719627564119,2.10268493,60953.0,60952.0,0.19301989]
[1719627564327,2.00928493,60953.0,60952.0,0.19301989]
[1719627564573,2.10268493,60953.0,60952.0,0.19301989]
[1719627566159,2.1026913,60953.0,60952.0,0.19301989]
[1719627568818,2.1026913,60953.0,60952.0,0.19155667]
[1719627569266,0.2124653,60953.0,60952.0,0.19155667]
[1719627569490,2.085626,60953.0,60952.0,0.19155667]
[1719627569939,2.10269089,60953.0,60952.0,0.19155667]
[1719627571561,2.10269089,60953.0,60952.0,0.19150479]
[1719627572425,2.10269089,60953.0,60952.0,0.19296801]
[1719627572647,2.10269164,60953.0,60952.0,0.19150479]
[1719627572880,2.10269164,60953.0,60952.0,0.19296801]
[1719627573622,2.10269164,60953.0,60952.0,0.19150479]
[1719627573830,2.09151464,60953.0,60952.0,0.19296801]
[1719627574883,2.08951464,60953.0,60952.0,0.19296801]
[1719627575019,2.09151464,60953.0,60952.0,0.19296801]
[1719627576489,2.08951464,60953.0,60952.0,0.19296801]
[1719627576900,2.08951464,60953.0,60952.0,0.19396801]
[1719627577756,2.08951464,60953.0,60952.0,0.19296801]
[1719627578486,2.09151464,60953.0,60952.0,0.19296801]
[1719627579121,2.09152092,60953.0,60952.0,0.19296801]
[1719627579939,2.08952092,60953.0,60952.0,0.19396801]
[1719627580347,2.09152092,60953.0,60952.0,0.19150479]
[1719627580796,2.09236092,60953.0,60952.0,0.19296801]
[1719627581003,2.09236092,60953.0,60952.0,0.19396801]
[1719627581630,2.10353792,60953.0,60952.0,0.19396801]
[1719627582842,2.10353724,60953.0,60952.0,0.19396801]
[1719627583050,2.10353724,60953.0,60952.0,0.19250479]
[1719627583459,2.10353724,60953.0,60952.0,0.19396801]
[1719627584300,2.10353724,60953.0,60952.0,0.19250479]
[1719627584503,2.10353724,60953.0,60952.0,0.19396801]
[1719627585519,2.10353697,60953.0,60952.0,0.19396801]
[1719627588782,2.10353734,60953.0,60952.0,0.19250479]
[1719627591935,2.086466,60953.0,60952.0,0.19396801]
[1719627592146,2.077608,60953.0,60952.0,0.19396801]
[1719627594702,2.077608,60953.0,60952.0,0.19250479]
[1719627594932,2.077608,60953.0,60952.0,0.19396801]
[1719627595147,2.077608,60953.0,60952.0,0.19250479]
[1719627595148,2.060547,60953.0,60952.0,0.19250479]
[1719627595368,2.07760839,60953.0,60952.0,0.19242575]
[1719627595624,2.060547,60953.0,60952.0,0.19242575]
[1719627595856,2.07760902,60953.0,60952.0,0.19242575]
[1719627596329,2.00764502,60953.0,60952.0,0.19388897]
[1719627598319,2.0076456,60953.0,60952.0,0.19388897]
[1719627598534,2.00764533,60953.0,60952.0,0.19388897]
[1719627598997,2.00764533,60953.0,60952.0,0.19632377]
[1719627600329,2.00764533,60953.0,60952.0,0.19586055]
[1719627600561,2.00764533,60953.0,60952.0,0.19486055]
[1719627600780,2.00764533,60953.0,60952.0,0.19386055]
[1719627601006,1.990583,60953.0,60952.0,0.19386055]
[1719627601224,2.00764466,60953.0,60952.0,0.19386055]
[1719627603215,2.00756629,60953.0,60952.0,0.19386055]
[1719627603782,2.14144216,60953.0,60952.0,0.0035588]
[1719627603994,2.01986383,60953.0,60952.0,0.0035588]
[1719627604484,2.02986383,60953.0,60952.0,0.0035588]
[1719627604743,1.7736722,60953.0,60952.0,0.0035588]
[1719627604952,1.8670722,60953.0,60952.0,0.0035588]
[1719627606978,1.950013,60953.0,60952.0,0.0035588]
[1719627607179,1.96707105,60953.0,60952.0,0.0035588]
[1719627607390,1.950013,60953.0,60952.0,0.0035588]
[1719627607593,1.96707167,60953.0,60952.0,0.0035588]
[1719627608278,1.95707167,60953.0,60952.0,0.0035588]
[1719627608671,1.96707167,60953.0,60952.0,0.0035588]
[1719627610371,1.950013,60953.0,60952.0,0.0035588]
[1719627610588,1.85136651,60953.0,60952.0,0.0035588]
[1719627610796,1.94476651,60953.0,60952.0,0.0035588]
[1719627611436,1.927713,60953.0,60952.0,0.0035588]
[1719627611646,1.94476675,60953.0,60952.0,0.0035588]
[1719627612169,1.85136675,60953.0,60952.0,0.0035588]
[1719627612368,1.85136675,60953.0,60952.0,0.19162202]
[1719627612369,1.47420775,60953.0,60952.0,0.19162202]
[1719627612593,1.56760775,60953.0,60952.0,0.19162202]
[1719627612813,1.56844775,60953.0,60952.0,0.19162202]
[1719627613030,1.56844775,60953.0,60952.0,0.1901588]
[1719627613238,1.53667675,60953.0,60952.0,0.1901588]
[1719627613455,1.508924,60953.0,60952.0,0.1901588]
[1719627613672,1.52597941,60953.0,60952.0,0.1901588]
[1719627614537,1.52597941,60953.0,60952.0,0.19162202]
[1719627614968,0.21129541,60953.0,60952.0,0.19362202]
[1719627615662,1.57786441,60953.0,60952.0,0.19162202]
[1719627615898,0.21129541,60953.0,60952.0,0.19162202]
[1719627616119,1.57786441,60953.0,60952.0,0.19262202]
[1719627616578,1.56716541,60953.0,60952.0,0.19262202]
[1719627617294,1.56716541,60953.0,60952.0,0.19462202]
[1719627617547,1.56716541,60953.0,60952.0,0.19362202]
[1719627617795,1.56716541,60953.0,60952.0,0.19562202]
[1719627618062,1.54134941,60953.0,60952.0,0.19562202]
[1719627618305,0.30777841,60953.0,60952.0,0.19562202]
[1719627618546,0.11789541,60953.0,60952.0,0.367961]
[1719627618777,0.00084,60953.0,60952.0,0.367961]
[1719627619239,0.2556,60953.0,60952.0,0.367961]
[1719627619481,0.00084,60953.0,60952.0,0.367961]
[1719627619745,0.10084,60953.0,60952.0,0.367961]
[1719627619968,0.10084,60953.0,60952.0,0.365961]
[1719627620207,0.10084,60953.0,60952.0,0.368961]
[1719627620680,0.00084,60953.0,60952.0,0.366961]
[1719627620943,0.00084,60953.0,60952.0,0.375961]
[1719627621180,0.00084,60953.0,60952.0,0.36249778]
[1719627621395,0.00084,60953.0,60952.0,0.373961]
[1719627621628,0.00084,60953.0,60952.0,0.385961]
[1719627622320,0.00084,60953.0,60952.0,0.373961]
[1719627622997,0.00084,60953.0,60952.0,0.363961]
[1719627623442,0.00084,60953.0,60952.0,0.373961]
[1719627623883,0.00084,60953.0,60952.0,0.386961]
[1719627624113,0.00084,60953.0,60952.0,0.363961]
[1719627624592,0.00084,60953.0,60952.0,0.591961]
[1719627625837,0.08924,60960.0,60959.0,0.1931]
[1719627626059,0.1,60970.0,60967.0,0.19456322]
[1719627626255,0.00084,60972.0,60967.0,0.19456322]
[1719627626256,0.09424,60968.0,60967.0,0.19456322]
[1719627626523,0.468372,60968.0,60967.0,0.3669022]
[1719627626747,0.43882229,60968.0,60967.0,0.3669022]
[1719627627940,0.53882229,60968.0,60967.0,0.3669022]
[1719627628176,0.521772,60968.0,60967.0,0.3709022]
[1719627628683,0.456451,60968.0,60967.0,0.3759022]
[1719627628926,0.299434,60968.0,60967.0,0.3759022]
[1719627629154,0.206034,60968.0,60967.0,0.3759022]
[1719627629377,0.19424,60968.0,60967.0,0.3759022]
[1719627629608,0.09424,60968.0,60967.0,0.3759022]
[1719627629849,0.00084,60968.0,60967.0,0.3759022]
[1719627630073,0.00084,60968.0,60967.0,0.35943898]
[1719627630300,0.00084,60968.0,60967.0,0.3709022]
[1719627630750,0.00084,60968.0,60967.0,0.35943898]
[1719627630991,0.10084,60968.0,60967.0,0.36443898]
[1719627631219,0.10084,60968.0,60967.0,0.3759022]
[1719627632139,0.00084,60968.0,60967.0,0.3759022]
[1719627633175,0.00084,60968.0,60967.0,0.3719022]
[1719627633424,0.00084,60968.0,60967.0,0.3759022]
[1719627633667,0.10084,60968.0,60967.0,0.3859022]
[1719627633910,0.26872,60968.0,60967.0,0.3859022]
[1719627634131,0.10084,60968.0,60967.0,0.3859022]
[1719627634348,0.26872,60968.0,60967.0,0.3859022]
[1719627636431,0.26872,60968.0,60967.0,0.3759022]
[1719627637363,0.26872,60968.0,60967.0,0.3859022]
[1719627640808,0.10084,60968.0,60967.0,0.3859022]
[1719627642079,0.00084,60968.0,60967.0,0.3859022]
[1719627647386,0.00084,60968.0,60967.0,0.3769022]
[1719627647887,0.00084,60968.0,60967.0,0.3869022]
[1719627648311,0.00084,60968.0,60967.0,0.3769022]
[1719627649805,0.00084,60968.0,60967.0,0.3889022]
[1719627650717,0.00084,60968.0,60967.0,0.37743898]
[1719627650935,0.00084,60968.0,60967.0,0.3889022]
[1719627654646,0.00084,60968.0,60967.0,0.3789022]
[1719627654874,0.00084,60968.0,60967.0,0.3889022]
[1719627660771,0.38778888,61103.0,60978.0,0.01]
[1719627660985,0.0934,60979.0,60978.0,0.01146322]
[1719627661855,0.0934,60979.0,60976.0,0.01146322]
[1719627662077,0.08130346,60987.0,60978.0,0.002]
[1719627662286,0.0934,60979.0,60978.0,0.002]
[1719627662494,1.827713,60979.0,60978.0,0.002]
[1719627662935,1.927713,60979.0,60978.0,0.002]
[1719627663399,1.927713,60979.0,60975.0,0.01146322]
[1719627663621,0.0934,60976.0,60975.0,0.01146322]
[1719627663842,1.827713,60976.0,60968.0,0.16233898]
[1719627664084,1.834313,60975.0,60974.0,0.01146322]
[1719627664313,1.927713,60975.0,60974.0,0.01146322]
[1719627665403,0.21045447,60975.0,60974.0,0.01346322]
[1719627666258,1.94476747,60975.0,60974.0,0.01346322]
[1719627666499,1.94476747,60975.0,60974.0,0.01546322]
[1719627666741,1.94476747,60975.0,60974.0,0.01346322]
[1719627666968,1.94476747,60975.0,60974.0,0.01146322]
[1719627667193,1.94476747,60975.0,60974.0,0.01246322]
[1719627667689,1.94476736,60975.0,60974.0,0.001]
[1719627668147,1.94476736,60975.0,60974.0,0.01246322]
[1719627670379,1.94476736,60975.0,60974.0,0.01446322]
[1719627670935,1.94476736,60975.0,60974.0,0.01346322]
[1719627671144,1.94476736,60975.0,60974.0,0.01546322]
[1719627671592,1.94476736,60975.0,60974.0,0.01146322]
[1719627671783,1.94476736,60975.0,60974.0,0.01246322]
[1719627673456,1.94476736,60975.0,60974.0,0.01146322]
[1719627673679,1.85136736,60975.0,60974.0,0.01246322]
[1719627673907,1.94476736,60975.0,60974.0,0.01246322]
[1719627674589,1.94476736,60975.0,60974.0,0.01146322]
[1719627674817,1.94476736,60975.0,60974.0,0.01246322]
[1719627676413,1.94476736,60975.0,60974.0,0.01338722]
[1719627677228,1.94476736,60975.0,60974.0,0.01333528]
[1719627678077,1.927713,60975.0,60974.0,0.01333528]
[1719627684169,1.927713,60975.0,60974.0,0.001924]
[1719627684393,1.927713,60975.0,60974.0,0.01333528]
[1719627686441,0.1934,60975.0,60974.0,0.01333528]
[1719627686658,1.827713,60975.0,60974.0,0.01333528]
[1719627687012,1.927713,60975.0,60974.0,0.01333528]
[1719627688248,1.797214,60975.0,60974.0,0.01333528]
[1719627688536,1.890614,60975.0,60974.0,0.01333528]
[1719627693612,1.890614,60975.0,60974.0,0.001924]
[1719627694040,1.890614,60975.0,60974.0,0.000924]
[1719627694932,1.890614,60975.0,60974.0,0.001924]
[1719627695792,1.890614,60975.0,60974.0,0.01333528]
[1719627696557,1.890614,60975.0,60974.0,0.001924]
[1719627696778,1.890614,60975.0,60974.0,0.01333528]
[1719627697497,1.865351,60975.0,60974.0,0.001924]
[1719627697735,1.790127,60975.0,60974.0,0.01333528]
[1719627697977,1.038424,60975.0,60974.0,0.01333528]
[1719627698228,1.038424,60975.0,60974.0,0.12293528]
[1719627698470,0.784092,60975.0,60974.0,0.111524]
[1719627698714,0.784092,60975.0,60974.0,0.36516298]
[1719627698715,0.205886,60975.0,60974.0,0.36516298]
[1719627698969,0.1,60975.0,60974.0,0.36516298]
[1719627699435,0.0934,60980.0,60974.0,0.16426298]
[1719627699665,0.00084,60987.0,60974.0,0.16426298]
[1719627699666,0.00084,60987.0,60986.0,0.01141128]
[1719627699880,0.00084,60987.0,60986.0,0.21231128]
[1719627700128,0.00084,60987.0,60986.0,0.2009]
[1719627700350,0.00084,60987.0,60986.0,0.37465026]
[1719627700588,0.09424,60987.0,60986.0,0.37465026]
[1719627701041,1.218983,60987.0,60986.0,0.37665026]
[1719627701254,0.09424,60987.0,60986.0,0.38265026]
[1719627701495,1.218983,60987.0,60986.0,0.37665026]
[1719627701940,1.218983,60987.0,60986.0,0.38465026]
[1719627702186,1.318983,60987.0,60986.0,0.37665026]
[1719627702875,1.318983,60987.0,60986.0,0.37465026]
[1719627703106,1.318983,60987.0,60986.0,0.38165026]
[1719627703816,1.318983,60987.0,60986.0,0.38965026]
[1719627704047,1.318983,60987.0,60986.0,0.38165026]
[1719627704262,1.318983,60987.0,60986.0,0.38965026]
[1719627704720,1.242774,60987.0,60986.0,0.38965026]
[1719627706535,1.242774,60987.0,60986.0,0.02641128]
[1719627707424,1.242774,60987.0,60986.0,0.01941128]
[1719627707661,1.242774,60987.0,60986.0,0.02641128]
[1719627707880,1.242774,60987.0,60986.0,0.01841128]
[1719627708080,1.242774,60987.0,60986.0,0.02641128]
[1719627708805,1.149374,60987.0,60986.0,0.02641128]
[1719627709053,0.903785,60987.0,60986.0,0.22261128]
[1719627709499,0.92083658,60987.0,60986.0,0.22261128]
[1719627709729,0.92083658,60987.0,60986.0,0.21561128]
[1719627709959,0.92083658,60987.0,60986.0,0.21461128]
[1719627710181,0.92083649,60987.0,60986.0,0.21461128]
[1719627710367,0.92083649,60987.0,60986.0,0.22261128]
[1719627710621,0.92083649,60987.0,60986.0,0.21561128]
[1719627710839,0.92083649,60987.0,60986.0,0.22261128]
[1719627719215,1.83802249,60987.0,60986.0,0.22261128]
[1719627719462,1.820971,60987.0,60986.0,0.22261128]
[1719627719691,1.83802234,60987.0,60986.0,0.22261128]
[1719627720156,1.79695334,60987.0,60986.0,0.22261128]
[1719627721708,1.64266334,60987.0,60986.0,0.22261128]
[1719627721926,0.70157034,60987.0,60986.0,0.2112]
[1719627722373,0.70157039,60987.0,60986.0,0.22261128]
[1719627723062,0.70157039,60987.0,60986.0,0.2112]
[1719627723491,0.60817039,60987.0,60986.0,0.38495026]
[1719627723704,0.24752,60987.0,60986.0,0.37353898]
[1719627723945,0.24752,60987.0,60986.0,0.39495026]
[1719627724172,0.228963,60987.0,60986.0,0.39495026]
[1719627724553,0.10084,60987.0,60986.0,0.38695026]
[1719627724796,0.00084,60987.0,60986.0,0.37995026]
[1719627725043,0.00084,60987.0,60986.0,0.38795026]
[1719627726614,0.00084,60987.0,60986.0,0.38995026]
[1719627726843,0.00084,60987.0,60986.0,0.37795026]
[1719627727107,0.00084,60987.0,60986.0,0.38795026]
[1719627727331,0.00084,60987.0,60986.0,0.39195026]
[1719627727548,0.00084,60987.0,60986.0,0.37053898]
[1719627727762,0.00084,60987.0,60986.0,0.40295026]
[1719627729979,0.00084,60987.0,60986.0,0.37995026]
[1719627730415,0.00084,60987.0,60986.0,0.40595026]
[1719627732926,0.00084,60987.0,60986.0,0.39295026]
[1719627733139,0.00084,60987.0,60986.0,0.40595026]
[1719627734254,0.00084,60987.0,60986.0,0.39295026]
[1719627734481,0.00084,60987.0,60986.0,0.40595026]
[1719627740238,0.00084,60987.0,60986.0,0.39295026]
[1719627740459,0.00084,60987.0,60986.0,0.40695026]
[1719627741115,0.00084,60987.0,60986.0,0.39395026]
[1719627741579,0.00084,60987.0,60986.0,0.40795026]
[1719627743402,0.02544042,61013.0,61002.0,0.01]
[1719627743630,0.0934,61003.0,61002.0,0.01141128]
[1719627743845,1.827713,61003.0,61002.0,0.01141128]
[1719627744066,1.827713,61003.0,60996.0,0.01141128]
[1719627744341,0.00838,61011.0,60993.0,0.5714]
[1719627744342,0.0934,60997.0,60993.0,0.5714]
[1719627744560,1.41553,60996.0,60994.0,0.16233898]
[1719627744780,1.279633,60995.0,60994.0,0.16233898]
[1719627745026,0.0934,60995.0,60994.0,0.16233898]
[1719627745247,0.11045038,60995.0,60994.0,0.16233898]
[1719627745464,0.21045038,60995.0,60994.0,0.16233898]
[1719627746107,1.36067338,60995.0,60994.0,0.16233898]
[1719627746373,1.23807938,60995.0,60994.0,0.16833898]
[1719627746583,1.23807938,60995.0,60994.0,0.17975026]
[1719627746584,0.94807938,60995.0,60994.0,0.17975026]
[1719627747478,0.94807938,60995.0,60994.0,0.18575026]
[1719627748359,0.94807932,60995.0,60994.0,0.17975026]
[1719627748584,0.94807932,60995.0,60994.0,0.17375026]
[1719627748814,0.931029,60995.0,60994.0,0.17375026]
[1719627749040,0.931029,60995.0,60994.0,0.17575026]
[1719627749041,0.9480795,60995.0,60994.0,0.17575026]
[1719627749258,0.8382305,60995.0,60994.0,0.16233898]
[1719627749485,0.7725305,60995.0,60994.0,0.16233898]
[1719627749711,0.7725305,60995.0,60994.0,0.16833898]
[1719627749926,0.7725305,60995.0,60994.0,0.17133898]
[1719627750400,0.7725305,60995.0,60994.0,0.17975026]
[1719627750620,0.7177145,60995.0,60994.0,0.18575026]
[1719627750841,0.7177145,60995.0,60994.0,0.17433898]
[1719627751065,0.7177145,60995.0,60994.0,0.17975026]
[1719627751304,0.7177145,60995.0,60994.0,0.16833898]
[1719627751521,0.71771468,60995.0,60994.0,0.37155026]
[1719627751985,0.71771468,60995.0,60994.0,0.36555026]
[1719627752414,0.71771468,60995.0,60994.0,0.37155026]
[1719627752631,0.71771468,60995.0,60994.0,0.28835026]
[1719627752868,0.71771468,60995.0,60994.0,0.28535026]
[1719627753079,0.71771468,60995.0,60994.0,0.18575026]
[1719627753302,0.71771468,60995.0,60994.0,0.012]
[1719627753768,0.71771468,60995.0,60992.0,0.01141128]
[1719627754040,0.18882215,60995.0,60994.0,0.012]
[1719627754273,0.21045068,60995.0,60994.0,0.012]
[1719627754503,0.1934,60995.0,60994.0,0.006]
[1719627754747,1.927713,60995.0,60994.0,0.006]
[1719627755432,1.927713,60995.0,60984.0,0.47891128]
[1719627755658,0.0934,60985.0,60984.0,0.01141128]
[1719627755918,1.827713,60985.0,60984.0,0.01141128]
[1719627756163,1.927713,60985.0,60984.0,0.01136329]
[1719627757111,1.927713,60985.0,60984.0,0.01736329]
[1719627757368,1.94476368,60985.0,60984.0,0.02336329]
[1719627757910,1.927713,60985.0,60984.0,0.02336329]
[1719627758157,0.2104469,60985.0,60984.0,0.02336329]
[1719627759381,1.927713,60985.0,60984.0,0.02336329]
[1719627760309,1.436991,60985.0,60984.0,0.02336329]
[1719627760740,1.4540379,60985.0,60984.0,0.02336329]
[1719627761212,1.436991,60985.0,60984.0,0.012]
[1719627761444,1.45403822,60985.0,60984.0,0.012]
[1719627761697,1.45403832,60985.0,60984.0,0.012]
[1719627764441,1.45403819,60985.0,60984.0,0.012]
[1719627767975,1.45403765,60985.0,60984.0,0.012]
[1719627768681,1.52836326,60985.0,60984.0,0.012]
[1719627769798,1.52836326,60985.0,60984.0,0.006]
[1719627770017,1.52836326,60985.0,60976.0,0.4675]
[1719627770240,0.19137226,60985.0,60984.0,0.002]
[1719627770459,0.21044665,60985.0,60984.0,0.002]
[1719627770686,0.21044665,60985.0,60984.0,0.00094273]
[1719627770908,0.23203783,60985.0,60984.0,0.00094273]
[1719627771153,0.23203783,60985.0,60974.0,0.000924]
[1719627771154,0.2,60983.0,60974.0,0.000924]
[1719627771386,0.0934,60975.0,60974.0,0.000924]
[1719627772511,1.827713,60975.0,60974.0,0.000924]
[1719627772721,1.927713,60975.0,60974.0,0.000924]
[1719627773176,1.927713,60975.0,60974.0,0.005924]
[1719627773872,1.94475647,60975.0,60974.0,0.005924]
[1719627774111,1.94475439,60975.0,60974.0,0.010924]
[1719627774576,1.94475439,60975.0,60974.0,0.000924]
[1719627775030,2.1100881,60975.0,60974.0,0.000924]
[1719627777321,2.09304671,60975.0,60974.0,0.000924]
[1719627777546,2.11008709,60975.0,60974.0,0.000924]
[1719627780605,2.11008705,60975.0,60974.0,0.000924]
[1719627781931,0.21344034,60975.0,60974.0,0.000924]
[1719627782173,0.1964,60975.0,60974.0,0.000924]
[1719627782629,1.930713,60975.0,60974.0,0.000924]
[1719627783059,1.94775188,60975.0,60974.0,0.000924]
[1719627783872,1.94775188,60975.0,60974.0,0.00085548]
[1719627785504,1.85435188,60975.0,60974.0,0.00085548]
[1719627785742,1.94775188,60975.0,60974.0,0.00085548]
[1719627786362,1.94475195,60975.0,60974.0,0.00085548]
[1719627786597,1.85135195,60975.0,60974.0,0.00085548]
[1719627786832,1.94675195,60975.0,60974.0,0.00085548]
[1719627787051,1.94575195,60975.0,60974.0,0.00085548]
[1719627787184,1.94475195,60975.0,60974.0,0.00085548]
[1719627787404,1.94675195,60975.0,60974.0,0.00085548]
[1719627789570,1.94675136,60975.0,60974.0,0.00085548]
[1719627792672,1.929713,60975.0,60974.0,0.00085548]
[1719627792913,1.94674606,60975.0,60974.0,0.00085548]
[1719627793118,1.929713,60975.0,60974.0,0.00085548]
[1719627793364,1.94674698,60975.0,60974.0,0.00085548]
[1719627795712,1.929713,60975.0,60974.0,0.00085548]
[1719627795967,1.94674828,60975.0,60974.0,0.00085548]
[1719627796857,1.94674828,60975.0,60974.0,0.00078722]
[1719627798792,2.64674828,60975.0,60974.0,0.00078722]
[1719627799216,2.64675143,60975.0,60974.0,0.00078722]
[1719627799847,2.80908514,60975.0,60974.0,0.00078722]
[1719627802344,2.79204671,60975.0,60974.0,0.00078722]
[1719627802554,2.80908684,60975.0,60974.0,0.00078722]